bitfinex-derivatives/quotes_BTCF0:USTF0_20220103
["timestamp","ask_amount","ask_price","bid_price","bid_amount"]
[1641181888711,1.59077833,46794.0,46793.0,0.82136976]
[1641181888912,0.177,46794.0,46793.0,1.14382676]
[1641181889712,1.41377833,46795.0,46793.0,1.14382676]
[1641181890514,1.41377833,46795.0,46793.0,1.32782676]
[1641181890515,0.186,46795.0,46793.0,1.32782676]
[1641181891814,1.41377833,46798.0,46793.0,1.14382676]
[1641181892418,1.60377833,46798.0,46793.0,1.28982676]
[1641181893219,1.60377833,46798.0,46794.0,0.35895218]
[1641181893517,1.60377833,46798.0,46795.0,0.14033567]
[1641181893717,1.41377833,46798.0,46795.0,0.14033567]
[1641181894418,1.60377833,46798.0,46795.0,0.28033567]
[1641181895617,1.60377833,46798.0,46796.0,0.321721]
[1641181895820,0.18,46808.0,46796.0,0.321721]
[1641181895821,1.41377833,46797.0,46796.0,0.321721]
[1641181896418,1.60177833,46797.0,46796.0,0.487721]
[1641181896618,1.60177833,46797.0,46796.0,0.166]
[1641181897822,1.41377833,46797.0,46795.0,0.14033567]
[1641181898423,1.60277833,46797.0,46795.0,0.28733567]
[1641181898622,0.189,46797.0,46795.0,0.28733567]
[1641181899425,1.60277833,46797.0,46795.0,0.28733567]
[1641181899625,1.41377833,46797.0,46795.0,0.14033567]
[1641181900526,1.60277833,46797.0,46795.0,0.29433567]
[1641181901727,1.41377833,46797.0,46795.0,0.14033567]
[1641181902427,1.60177833,46797.0,46795.0,0.30733567]
[1641181903228,0.0909379,46796.0,46795.0,0.30733567]
[1641181903928,0.0909379,46796.0,46795.0,0.14033567]
[1641181904428,0.2769379,46796.0,46795.0,0.32333567]
[1641181904833,0.186,46796.0,46795.0,0.32333567]
[1641181905632,0.2769379,46796.0,46795.0,0.32333567]
[1641181905833,0.0909379,46796.0,46795.0,0.14033567]
[1641181906334,1.41377833,46797.0,46795.0,0.14033567]
[1641181906534,0.186,46796.0,46795.0,0.32333567]
[1641181907234,1.35877403,46797.0,46795.0,0.33312967]
[1641181907535,1.35877403,46798.0,46795.0,0.65340767]
[1641181907735,1.35877403,46798.0,46795.0,0.47040767]
[1641181908435,1.35877403,46798.0,46795.0,0.66340767]
[1641181909340,0.0909379,46805.0,46797.0,0.46658319]
[1641181909538,0.0909379,46805.0,46800.0,0.18]
[1641181909738,0.0909379,46805.0,46803.0,0.18]
[1641181909938,0.0909379,46805.0,46803.0,0.24469]
[1641181910138,0.0909379,46805.0,46804.0,0.321903]
[1641181910339,0.0909379,46805.0,46804.0,0.34326666]
[1641181910541,1.85,46813.0,46804.0,0.34326666]
[1641181910839,1.85,46813.0,46806.0,0.18]
[1641181911040,0.8227459,46814.0,46804.0,0.34326666]
[1641181911242,0.8227459,46814.0,46804.0,0.02136366]
[1641181911440,1.9626,46816.0,46809.0,0.14033567]
[1641181911642,0.8227459,46817.0,46809.0,0.14033567]
[1641181912440,0.8227459,46817.0,46809.0,0.3594913]
[1641181912641,0.14033567,46819.0,46809.0,0.6805753]
[1641181912840,0.14033567,46819.0,46809.0,0.87380259]
[1641181913951,0.14033567,46819.0,46809.0,0.68580259]
[1641181914343,0.14033567,46819.0,46809.0,0.87780259]
[1641181915644,0.35440439,46811.0,46809.0,0.87780259]
[1641181915943,0.35440439,46811.0,46809.0,0.68580259]
[1641181916345,0.35440439,46811.0,46809.0,0.87780259]
[1641181916547,0.29670439,46811.0,46809.0,1.05780259]
[1641181916746,0.29130439,46811.0,46810.0,0.18]
[1641181917146,0.82694357,46814.0,46810.0,0.502181]
[1641181917346,0.82694357,46815.0,46810.0,0.502181]
[1641181917550,0.82694357,46815.0,46814.0,0.14033567]
[1641181917747,0.82694357,46815.0,46814.0,0.21732567]
[1641181918349,0.82694357,46815.0,46814.0,0.74043967]
[1641181918549,0.82694357,46818.0,46814.0,0.74043967]
[1641181919151,0.82694357,46818.0,46816.0,0.02136016]
[1641181919349,0.39495781,46818.0,46817.0,0.02135911]
[1641181919551,0.39495781,46819.0,46817.0,0.48107178]
[1641181920367,0.39495781,46819.0,46817.0,0.35369478]
[1641181920763,0.39495781,46819.0,46818.0,0.318398]
[1641181920962,0.0001,46820.0,46818.0,0.318398]
[1641181922363,0.0001,46820.0,46818.0,0.509398]
[1641181924369,0.0001,46820.0,46818.0,0.511398]
[1641181925369,0.0001,46820.0,46818.0,0.691398]
[1641181925769,0.0001,46820.0,46818.0,0.498398]
[1641181926369,0.0001,46820.0,46818.0,0.691398]
[1641181927371,0.0001,46820.0,46819.0,0.53396762]
[1641181927771,0.0001,46820.0,46819.0,0.85576562]
[1641181928371,0.0001,46820.0,46819.0,1.04876562]
[1641181929675,0.0001,46820.0,46819.0,0.85576562]
[1641181930074,1.41771755,46820.0,46819.0,0.85576562]
[1641181930273,1.41771755,46820.0,46819.0,1.03576562]
[1641181930473,1.41771755,46820.0,46819.0,1.22976562]
[1641181930873,1.41771755,46820.0,46819.0,1.22976412]
[1641181931078,0.35583635,46820.0,46819.0,1.22976412]
[1641181931876,0.35583635,46820.0,46819.0,1.03676412]
[1641181932383,0.0001,46820.0,46819.0,1.04976412]
[1641181932577,0.0001,46820.0,46819.0,1.04876412]
[1641181932977,0.0001,46820.0,46819.0,1.22876412]
[1641181933777,0.0001,46820.0,46819.0,0.85676412]
[1641181933978,0.0001,46820.0,46819.0,1.03676412]
[1641181934378,0.0001,46820.0,46819.0,1.23076412]
[1641181934778,0.0001,46820.0,46819.0,1.05076412]
[1641181934985,0.0001,46820.0,46819.0,1.23076412]
[1641181935780,0.35573635,46822.0,46820.0,0.51249068]
[1641181935980,0.35573635,46822.0,46819.0,1.04555812]
[1641181936180,0.35573635,46822.0,46821.0,0.316409]
[1641181936382,0.35573635,46823.0,46821.0,0.316409]
[1641181936581,0.35573635,46823.0,46820.0,0.514033]
[1641181936782,0.35573635,46823.0,46822.0,0.18]
[1641181936980,0.35573635,46823.0,46822.0,0.26356]
[1641181937180,0.35573635,46823.0,46822.0,0.585205]
[1641181937781,0.35573635,46823.0,46822.0,0.72554067]
[1641181937982,0.32313635,46823.0,46822.0,0.72554067]
[1641181938381,0.83005149,46826.0,46822.0,0.91954067]
[1641181938582,0.83005149,46827.0,46824.0,0.18]
[1641181938982,0.83005149,46827.0,46825.0,0.317888]
[1641181940389,0.83005149,46827.0,46825.0,0.509888]
[1641181941589,0.0908827,46829.0,46825.0,0.509888]
[1641181941590,0.83005149,46828.0,46825.0,0.509888]
[1641181941789,0.83005149,46828.0,46825.0,0.317888]
[1641181942390,0.83005149,46828.0,46825.0,0.508888]
[1641181942586,0.18,46827.0,46825.0,0.191]
[1641181942783,0.2631,46827.0,46825.0,0.191]
[1641181942983,0.2631,46827.0,46825.0,0.0001]
[1641181943385,0.0908827,46826.0,46825.0,0.0001]
[1641181943787,0.0908827,46826.0,46822.0,0.14033567]
[1641181943984,0.18,46824.0,46822.0,0.14033567]
[1641181945285,0.0908827,46823.0,46822.0,0.14033567]
[1641181946384,0.2828827,46823.0,46822.0,0.14033567]
[1641181947790,0.0908827,46823.0,46822.0,0.14033567]
[1641181948488,0.2828827,46823.0,46822.0,0.14033567]
[1641181949688,0.0908827,46823.0,46822.0,0.14033567]
[1641181950491,0.2828827,46823.0,46822.0,0.14033567]
[1641181951693,0.0908827,46823.0,46822.0,0.14033567]
[1641181952493,0.2828827,46823.0,46822.0,0.14033567]
[1641181952696,0.4628827,46823.0,46822.0,0.14033567]
[1641181953694,0.2708827,46823.0,46822.0,0.14033567]
[1641181954495,0.2828827,46823.0,46822.0,0.14033567]
[1641181954696,0.4628827,46823.0,46822.0,0.14033567]
[1641181955598,0.2828827,46823.0,46822.0,0.14033567]
[1641181955799,0.0908827,46823.0,46822.0,0.14033567]
[1641181956400,0.2848827,46823.0,46822.0,0.14033567]
[1641181956900,0.194,46823.0,46822.0,0.14033567]
[1641181957906,0.0908827,46823.0,46822.0,0.14033567]
[1641181958404,0.2828827,46823.0,46822.0,0.14033567]
[1641181958904,1.41761755,46828.0,46824.0,0.14424808]
[1641181959104,1.41761755,46828.0,46824.0,0.21611808]
[1641181959303,1.41761755,46828.0,46825.0,0.31442]
[1641181959503,1.41761755,46828.0,46824.0,0.07187]
[1641181960406,1.41761755,46828.0,46824.0,0.26087]
[1641181960605,1.41761755,46825.0,46824.0,0.26087]
[1641181961903,1.41761755,46825.0,46824.0,0.579134]
[1641181962607,1.41761755,46825.0,46824.0,0.583134]
[1641181963408,1.41761755,46826.0,46824.0,0.583134]
[1641181963808,1.41761755,46826.0,46824.0,0.390134]
[1641181964008,1.41761755,46825.0,46824.0,0.390134]
[1641181964409,1.41761755,46825.0,46824.0,0.582134]
[1641181965514,1.59761755,46826.0,46824.0,0.582134]
[1641181965910,1.59761755,46826.0,46824.0,0.390134]
[1641181966311,1.59761755,46826.0,46824.0,0.07187]
[1641181966511,1.59761755,46826.0,46824.0,0.192]
[1641181966712,1.41761755,46826.0,46824.0,0.192]
[1641181967111,1.59761755,46826.0,46824.0,0.192]
[1641181967312,1.41761755,46825.0,46824.0,0.192]
[1641181967711,1.41761755,46825.0,46822.0,0.14033567]
[1641181968316,0.18,46826.0,46822.0,0.14033567]
[1641181968614,0.18,46826.0,46822.0,0.33133567]
[1641181969124,1.4285865,46825.0,46822.0,0.33133567]
[1641181969724,1.4285865,46825.0,46822.0,0.14033567]
[1641181969926,1.4285865,46825.0,46823.0,0.319338]
[1641181970527,1.6085865,46826.0,46823.0,0.510338]
[1641181970725,1.6085865,46826.0,46823.0,0.191]
[1641181971329,1.4285865,46825.0,46823.0,0.191]
[1641181971727,1.4285865,46825.0,46822.0,0.14033567]
[1641181972329,1.4285865,46824.0,46822.0,0.14033567]
[1641181972529,1.4285865,46824.0,46822.0,0.32733567]
[1641181973734,1.4285865,46824.0,46822.0,0.14033567]
[1641181974434,1.4285865,46824.0,46822.0,0.32833567]
[1641181975933,1.4285865,46824.0,46822.0,0.14033567]
[1641181976434,1.4285865,46824.0,46822.0,0.32833567]
[1641181976636,0.09088968,46825.0,46822.0,0.32833567]
[1641181976637,1.69947618,46825.0,46822.0,0.32833567]
[1641181977235,0.09088968,46823.0,46822.0,0.32833567]
[1641181977836,0.09088968,46823.0,46822.0,0.14033567]
[1641181978036,0.09088968,46824.0,46822.0,0.14033567]
[1641181978436,0.09088968,46824.0,46822.0,0.32833567]
[1641181979042,1.4285865,46823.0,46822.0,0.32833567]
[1641181979835,1.4285865,46823.0,46822.0,0.14033567]
[1641181980439,1.4285865,46823.0,46822.0,0.32833567]
[1641181981840,1.4285865,46823.0,46822.0,0.14033567]
[1641181982240,0.09088968,46824.0,46822.0,0.14033567]
[1641181982440,0.09088968,46824.0,46822.0,0.32433567]
[1641181983941,0.09088968,46824.0,46822.0,0.14033567]
[1641181984443,1.43247349,46823.0,46822.0,0.32333567]
[1641181985842,0.09088968,46824.0,46822.0,0.14033567]
[1641181986442,0.09088968,46824.0,46822.0,0.32033567]
[1641181987846,0.09088968,46824.0,46822.0,0.14033567]
[1641181988446,0.09088968,46824.0,46822.0,0.32033567]
[1641181989852,0.09088968,46824.0,46822.0,0.14033567]
[1641181990551,0.09088968,46824.0,46822.0,0.32033567]
[1641181991052,0.09088968,46824.0,46822.0,0.35243567]
[1641181991652,0.18,46823.0,46822.0,0.35243567]
[1641181991852,0.18,46823.0,46822.0,0.17243567]
[1641181992053,1.61293785,46823.0,46822.0,0.17243567]
[1641181992653,1.61293785,46823.0,46822.0,0.35843567]
[1641181993054,1.70382753,46823.0,46822.0,0.35843567]
[1641181993256,1.52382753,46823.0,46822.0,0.35843567]
[1641181993855,1.52382753,46823.0,46822.0,0.17243567]
[1641181994657,1.43293785,46824.0,46822.0,0.36143567]
[1641181994858,1.61293785,46824.0,46822.0,0.36143567]
[1641181995658,1.61293785,46824.0,46822.0,0.189]
[1641181995858,0.02136574,46823.0,46822.0,0.189]
[1641181996058,0.09001574,46823.0,46817.0,0.14033567]
[1641181996258,0.18,46818.0,46817.0,0.14033567]
[1641181996663,0.18,46818.0,46817.0,0.31533567]
[1641181997765,0.33953968,46823.0,46817.0,0.31533567]
[1641181997964,0.09088968,46818.0,46817.0,0.14033567]
[1641181998563,0.09088968,46818.0,46817.0,0.32533567]
[1641181999164,1.43683562,46818.0,46817.0,0.32533567]
[1641181999366,1.49669562,46818.0,46817.0,0.32533567]
[1641181999569,1.49669562,46818.0,46817.0,0.185]
[1641181999766,0.05986,46818.0,46817.0,0.185]
[1641181999966,0.05986,46818.0,46812.0,0.36283258]
[1641182000168,0.18,46813.0,46812.0,0.36283258]
[1641182000566,0.181,46813.0,46812.0,0.54883258]
[1641182000766,1.297,46813.0,46812.0,0.54883258]
[1641182000969,1.297,46813.0,46811.0,0.36283258]
[1641182001268,0.181,46812.0,46811.0,0.36283258]
[1641182001866,0.181,46812.0,46804.0,0.50316825]
[1641182002066,0.14033567,46809.0,46804.0,0.36283258]
[1641182002680,0.33233567,46809.0,46804.0,0.36283258]
[1641182002877,1.77447438,46809.0,46804.0,0.36283258]
[1641182003979,1.58247438,46809.0,46804.0,0.36283258]
[1641182004390,0.09088968,46808.0,46804.0,0.36283258]
[1641182005982,0.09088968,46808.0,46805.0,0.36283258]
[1641182006382,0.09088968,46808.0,46803.0,0.60524053]
[1641182006383,0.14033567,46809.0,46803.0,0.60524053]
[1641182006583,0.191,46808.0,46802.0,0.42733136]
[1641182007587,0.09091372,46807.0,46806.0,0.36356856]
[1641182008391,0.09091372,46807.0,46805.0,0.36356856]
[1641182008594,0.28191372,46807.0,46805.0,0.36356856]
[1641182009487,0.09091372,46806.0,46804.0,0.36356856]
[1641182010394,0.09091372,46806.0,46805.0,0.36356856]
[1641182010587,0.28291372,46806.0,46805.0,0.36356856]
[1641182011196,0.28291372,46806.0,46804.0,0.36356856]
[1641182011197,0.192,46806.0,46804.0,0.36356856]
[1641182012090,0.09091372,46808.0,46804.0,0.36356856]
[1641182012289,0.09091372,46805.0,46804.0,0.36356856]
[1641182012892,0.28591372,46808.0,46804.0,0.36356856]
[1641182013891,0.09091372,46808.0,46804.0,0.36356856]
[1641182014293,0.09091372,46807.0,46804.0,0.36356856]
[1641182014694,0.09091372,46807.0,46805.0,0.32082]
[1641182014892,0.09091372,46807.0,46804.0,0.36356856]
[1641182015494,0.09091372,46807.0,46805.0,0.321983]
[1641182015895,0.09091372,46808.0,46805.0,0.68555156]
[1641182016598,0.28591372,46808.0,46805.0,0.68555156]
[1641182017899,0.09091372,46807.0,46805.0,0.9279306]
[1641182018598,0.27291372,46807.0,46805.0,1.0169306]
[1641182019299,0.09091372,46806.0,46805.0,1.0169306]
[1641182019899,1.5823266,46809.0,46805.0,0.9279306]
[1641182020101,0.36062021,46806.0,46805.0,0.9279306]
[1641182020300,0.36062021,46806.0,46805.0,0.321983]
[1641182020702,0.53962021,46806.0,46805.0,0.454983]
[1641182021101,0.53962021,46806.0,46805.0,0.133]
[1641182021903,0.36062021,46806.0,46803.0,0.14033567]
[1641182022502,0.09091538,46808.0,46805.0,0.06668115]
[1641182022705,0.18,46806.0,46805.0,0.06668115]
[1641182022902,0.18,46806.0,46803.0,0.21933567]
[1641182023604,0.18,46806.0,46804.0,0.318982]
[1641182023902,0.93236254,46808.0,46804.0,0.318982]
[1641182024604,1.03644716,46808.0,46804.0,0.318982]
[1641182026906,0.93236597,46807.0,46804.0,0.318982]
[1641182027707,0.99668597,46807.0,46804.0,0.318982]
[1641182028509,0.99668597,46807.0,46803.0,0.14033567]
[1641182028707,1.18468597,46807.0,46803.0,0.14033567]
[1641182029611,0.09091881,46806.0,46803.0,0.14033567]
[1641182030613,0.27891881,46806.0,46803.0,0.24533567]
[1641182031409,0.188,46806.0,46803.0,0.24533567]
[1641182032011,0.84144716,46807.0,46804.0,0.322217]
[1641182032611,1.03344716,46807.0,46804.0,0.322217]
[1641182033713,0.36184214,46805.0,46804.0,0.322217]
[1641182034613,0.54384214,46805.0,46804.0,0.473217]
[1641182036015,0.36184214,46805.0,46804.0,0.322217]
[1641182036815,0.54584214,46805.0,46804.0,0.476217]
[1641182038825,0.71784214,46805.0,46804.0,0.645217]
[1641182039023,0.36184214,46805.0,46804.0,0.322217]
[1641182039422,0.84144716,46808.0,46805.0,0.06545967]
[1641182039623,0.93236277,46808.0,46804.0,0.322217]
[1641182039822,0.93236277,46808.0,46803.0,0.14033567]
[1641182040423,0.93236277,46808.0,46804.0,0.319697]
[1641182040825,1.12436277,46808.0,46804.0,0.319697]
[1641182041627,0.28291561,46808.0,46804.0,0.319697]
[1641182041925,0.09091561,46808.0,46804.0,0.319697]
[1641182042329,0.09091561,46807.0,46806.0,0.6059476]
[1641182043430,0.28191561,46808.0,46805.0,0.6059476]
[1641182044031,0.09091561,46808.0,46805.0,0.6059476]
[1641182044230,0.09091561,46807.0,46805.0,0.6059476]
[1641182044830,0.27691561,46807.0,46805.0,0.7079476]
[1641182045129,0.186,46807.0,46805.0,1.13524815]
[1641182045934,0.186,46807.0,46805.0,1.03324815]
[1641182046133,0.09091561,46806.0,46805.0,1.03324815]
[1641182046733,0.27791561,46806.0,46805.0,1.19424815]
[1641182046932,0.187,46806.0,46805.0,1.19424815]
[1641182048135,0.09091561,46806.0,46805.0,1.03324815]
[1641182048532,0.09091561,46806.0,46805.0,1.15446034]
[1641182048733,0.27891561,46806.0,46805.0,1.31146034]
[1641182048934,0.188,46806.0,46805.0,0.70551274]
[1641182049935,0.27891561,46806.0,46805.0,0.70551274]
[1641182050136,0.09091561,46806.0,46805.0,1.15446034]
[1641182050336,1.03066851,46809.0,46807.0,0.51274324]
[1641182050535,0.77014495,46825.0,46808.0,0.189794]
[1641182050734,0.77014495,46825.0,46811.0,0.18]
[1641182050940,0.77014495,46825.0,46815.0,0.14033567]
[1641182051335,0.77014495,46825.0,46816.0,0.005401]
[1641182051539,0.77014495,46825.0,46819.0,0.18]
[1641182051738,0.77014495,46825.0,46819.0,0.25028]
[1641182051938,0.77014495,46825.0,46820.0,0.320105]
[1641182052838,0.163,46825.0,46822.0,0.14033567]
[1641182053039,1.63599244,46837.0,46824.0,0.20135571]
[1641182053237,1.63599244,46837.0,46828.0,0.18]
[1641182053436,1.63599244,46837.0,46829.0,0.03114793]
[1641182053638,1.63599244,46837.0,46831.0,0.18]
[1641182054039,0.77024495,46840.0,46836.0,0.18]
[1641182054441,0.77024495,46840.0,46837.0,0.002189]
[1641182054838,0.77024495,46840.0,46839.0,0.42100701]
[1641182055040,0.77024495,46840.0,46839.0,0.48813701]
[1641182055241,0.77024495,46840.0,46839.0,0.80665601]
[1641182055640,0.0001,46840.0,46839.0,0.80665601]
[1641182056642,0.0001,46840.0,46839.0,0.48813701]
[1641182056843,0.0001,46840.0,46839.0,0.61500701]
[1641182058142,0.0001,46840.0,46839.0,0.42100701]
[1641182058745,0.0001,46840.0,46839.0,0.61400701]
[1641182058952,0.14043567,46840.0,46839.0,0.193]
[1641182059152,1.25643567,46840.0,46839.0,0.193]
[1641182059557,1.25643567,46840.0,46836.0,0.36356648]
[1641182059755,1.116,46838.0,46836.0,0.36356648]
[1641182060156,1.116,46838.0,46830.0,0.50390215]
[1641182060357,0.18,46837.0,46830.0,0.50390215]
[1641182061055,0.18,46837.0,46830.0,0.14033567]
[1641182061559,0.18,46831.0,46830.0,0.14033567]
[1641182061758,0.18,46831.0,46826.0,0.60594413]
[1641182062161,0.18,46831.0,46825.0,0.7462798]
[1641182062361,0.18,46828.0,46825.0,0.7462798]
[1641182062666,0.26224,46828.0,46825.0,0.7462798]
[1641182063662,0.26224,46828.0,46825.0,0.14033567]
[1641182063663,0.08224,46828.0,46825.0,0.14033567]
[1641182064062,0.18,46827.0,46825.0,0.14033567]
[1641182064264,0.08224,46828.0,46825.0,0.14033567]
[1641182064865,0.193,46828.0,46825.0,0.14033567]
[1641182066176,0.32033567,46831.0,46825.0,0.14033567]
[1641182066467,0.14033567,46831.0,46825.0,0.14033567]
[1641182066668,0.14043567,46840.0,46829.0,0.20135427]
[1641182066869,0.192,46831.0,46829.0,0.20135427]
[1641182067069,0.192,46831.0,46830.0,0.64263218]
[1641182067276,0.192,46831.0,46830.0,0.64067267]
[1641182067870,0.192,46831.0,46830.0,0.46067267]
[1641182068070,0.14043567,46840.0,46830.0,0.46067267]
[1641182068775,0.33043567,46840.0,46830.0,0.46067267]
[1641182069372,0.51043567,46840.0,46830.0,0.46067267]
[1641182069574,1.45398506,46831.0,46830.0,0.46067267]
[1641182070475,0.33043567,46840.0,46830.0,0.46067267]
[1641182070974,0.14043567,46840.0,46832.0,0.02135285]
[1641182071886,0.0001,46840.0,46833.0,0.009794]
[1641182072290,0.0001,46840.0,46833.0,0.331659]
[1641182072688,0.0001,46840.0,46836.0,0.26492491]
[1641182072882,0.1981,46840.0,46836.0,0.26492491]
[1641182073491,0.1981,46840.0,46839.0,0.14033567]
[1641182074185,0.0001,46840.0,46839.0,0.14033567]
[1641182074787,0.1981,46840.0,46839.0,0.14033567]
[1641182076084,0.0001,46840.0,46839.0,0.14033567]
[1641182076787,0.1981,46840.0,46839.0,0.14033567]
[1641182078093,0.0001,46840.0,46839.0,0.14033567]
[1641182078789,0.1771,46840.0,46839.0,0.27833567]
[1641182079593,0.1771,46840.0,46839.0,0.59879067]
[1641182080194,0.0001,46840.0,46839.0,0.46079067]
[1641182080893,0.1841,46840.0,46839.0,0.64079067]
[1641182081295,0.1841,46840.0,46839.0,0.32033567]
[1641182081894,0.1841,46840.0,46839.0,0.64256667]
[1641182082095,0.1841,46840.0,46839.0,0.46256667]
[1641182082297,0.0001,46840.0,46839.0,0.46256667]
[1641182082895,0.1841,46840.0,46839.0,0.64156667]
[1641182083295,0.02,46843.0,46841.0,0.24287513]
[1641182083496,0.02,46843.0,46839.0,0.501231]
[1641182083696,0.02,46843.0,46839.0,0.179]
[1641182083996,0.02,46843.0,46840.0,0.009794]
[1641182084196,0.02,46843.0,46842.0,0.02134825]
[1641182084396,0.36214343,46846.0,46842.0,0.02134825]
[1641182084595,0.36214343,46846.0,46842.0,0.33767925]
[1641182084797,0.36214343,46846.0,46842.0,0.52867925]
[1641182085398,0.36224343,46850.0,46842.0,0.52867925]
[1641182085799,0.36224343,46850.0,46844.0,0.14033567]
[1641182086197,0.36224343,46850.0,46845.0,0.319839]
[1641182086500,0.0001,46850.0,46845.0,0.319839]
[1641182086899,0.0001,46850.0,46845.0,0.506839]
[1641182088298,0.0001,46850.0,46845.0,0.319839]
[1641182088899,0.0001,46850.0,46845.0,0.507839]
[1641182090301,0.0001,46850.0,46845.0,0.319839]
[1641182091003,0.0001,46850.0,46845.0,0.507839]
[1641182091503,0.06406,46850.0,46845.0,0.93477489]
[1641182092303,0.06406,46850.0,46845.0,0.74677489]
[1641182092817,0.09084836,46849.0,46845.0,0.93477489]
[1641182094218,0.09084836,46849.0,46845.0,0.75656889]
[1641182094918,0.09084836,46849.0,46845.0,0.94556889]
[1641182095422,0.0001,46850.0,46845.0,0.94556889]
[1641182095621,0.0001,46850.0,46845.0,1.00334889]
[1641182096222,0.0001,46850.0,46849.0,0.42689666]
[1641182096928,0.0001,46850.0,46849.0,0.61189666]
[1641182098124,0.0001,46850.0,46849.0,0.42689666]
[1641182098324,0.0001,46850.0,46849.0,0.56723233]
[1641182099025,0.0001,46850.0,46849.0,0.75223233]
[1641182100227,0.0001,46850.0,46849.0,0.56723233]
[1641182100827,0.0001,46850.0,46849.0,0.75323233]
[1641182102428,0.0001,46850.0,46849.0,0.56723233]
[1641182103029,0.0001,46850.0,46849.0,0.75223233]
[1641182104229,0.0001,46850.0,46849.0,0.56723233]
[1641182104929,0.0001,46850.0,46849.0,0.75623233]
[1641182106339,0.0001,46850.0,46849.0,0.56723233]
[1641182107044,0.0001,46850.0,46849.0,0.75623233]
[1641182108238,0.0001,46850.0,46849.0,0.56723233]
[1641182108838,0.0001,46850.0,46849.0,0.42689666]
[1641182109043,0.0001,46850.0,46849.0,0.61589666]
[1641182109440,0.0001,46850.0,46849.0,0.189]
[1641182109642,0.27006,46850.0,46849.0,0.189]
[1641182109840,0.34760577,46850.0,46842.0,0.02134829]
[1641182110041,0.18,46846.0,46839.0,0.14033567]
[1641182110942,0.374,46846.0,46839.0,0.14033567]
[1641182111842,0.09084836,46845.0,46839.0,0.14033567]
[1641182112042,0.8466159,46840.0,46839.0,0.14033567]
[1641182112242,0.9081559,46840.0,46839.0,0.14033567]
[1641182112941,1.0811559,46840.0,46839.0,0.30033567]
[1641182113344,0.23454,46840.0,46839.0,0.30033567]
[1641182114341,0.06154,46840.0,46839.0,0.14033567]
[1641182114543,0.15238836,46840.0,46839.0,0.14033567]
[1641182114942,0.33438836,46840.0,46839.0,0.29833567]
[1641182115345,0.33438836,46840.0,46839.0,0.158]
[1641182115542,0.51438836,46840.0,46839.0,0.158]
[1641182115743,0.33438836,46840.0,46839.0,0.158]
[1641182116344,0.29272403,46840.0,46832.0,0.14033567]
[1641182116944,0.47672403,46840.0,46832.0,0.30633567]
[1641182117345,0.09084836,46839.0,46832.0,0.30633567]
[1641182118447,0.09084836,46839.0,46833.0,0.02135221]
[1641182118649,0.09084836,46839.0,46833.0,0.11618221]
[1641182119047,0.26984836,46839.0,46833.0,0.27918221]
[1641182120448,0.09084836,46838.0,46833.0,0.11618221]
[1641182120948,0.26884836,46838.0,46833.0,0.26483]
[1641182121148,0.26884836,46838.0,46833.0,0.44483]
[1641182121648,0.8472566,46834.0,46833.0,0.80625021]
[1641182122255,0.8472566,46835.0,46833.0,0.63625021]
[1641182122750,0.8472566,46835.0,46834.0,0.33985359]
[1641182122949,1.0162566,46835.0,46834.0,0.33985359]
[1641182123855,1.10710496,46835.0,46834.0,0.33985359]
[1641182124252,0.93810496,46835.0,46834.0,0.33985359]
[1641182124653,0.51109585,46835.0,46834.0,0.33985359]
[1641182125154,0.67709585,46835.0,46834.0,0.52385359]
[1641182125755,0.166,46835.0,46834.0,0.70385359]
[1641182125957,0.166,46835.0,46834.0,1.0652738]
[1641182126358,0.14033567,46840.0,46834.0,0.8812738]
[1641182126771,0.14033567,46840.0,46836.0,0.18]
[1641182126970,0.31833567,46840.0,46836.0,0.18]
[1641182127171,0.31833567,46840.0,46837.0,0.318953]
[1641182127771,0.09084954,46839.0,46837.0,0.318953]
[1641182128980,0.27584954,46839.0,46837.0,0.493953]
[1641182129178,0.185,46839.0,46837.0,0.493953]
[1641182130382,1.45124255,46846.0,46836.0,0.42701519]
[1641182130583,1.45124255,46846.0,46838.0,0.14033567]
[1641182130986,1.64024255,46846.0,46838.0,0.14033567]
[1641182132388,1.45124255,46846.0,46838.0,0.14033567]
[1641182132989,1.63924255,46846.0,46838.0,0.14033567]
[1641182133994,1.45124255,46845.0,46838.0,0.14033567]
[1641182134191,1.52522255,46845.0,46838.0,0.14033567]
[1641182134998,1.71222255,46845.0,46838.0,0.14033567]
[1641182135198,1.45124255,46844.0,46838.0,0.14033567]
[1641182136502,1.45124255,46846.0,46838.0,0.14033567]
[1641182136993,1.45124255,46845.0,46838.0,0.14033567]
[1641182138193,1.64024255,46846.0,46838.0,0.14033567]
[1641182138392,1.45124255,46846.0,46838.0,0.14033567]
[1641182138993,1.64024255,46846.0,46838.0,0.14033567]
[1641182140395,0.14033567,46848.0,46839.0,0.36142021]
[1641182140396,1.45124255,46842.0,46839.0,0.36142021]
[1641182141196,1.64324255,46842.0,46839.0,0.36142021]
[1641182142297,1.45124255,46842.0,46839.0,0.36142021]
[1641182143098,1.64324255,46842.0,46839.0,0.36142021]
[1641182143299,1.64324255,46842.0,46839.0,0.55267781]
[1641182144001,1.64324255,46842.0,46840.0,0.36142021]
[1641182144201,1.45124255,46842.0,46840.0,0.36142021]
[1641182144602,1.45124255,46845.0,46839.0,0.1912576]
[1641182144801,0.07812,46842.0,46839.0,0.1912576]
[1641182145001,0.26912,46842.0,46839.0,0.1912576]
[1641182146104,0.09084715,46841.0,46839.0,0.1912576]
[1641182146602,0.09084715,46841.0,46840.0,0.318117]
[1641182147006,0.27984715,46841.0,46840.0,0.318117]
[1641182148007,0.27984715,46841.0,46839.0,0.3462576]
[1641182148406,0.09084715,46841.0,46839.0,0.1912576]
[1641182148607,0.09084715,46841.0,46840.0,0.009794]
[1641182148807,0.02680371,46841.0,46840.0,0.330653]
[1641182149007,0.20180371,46841.0,46840.0,0.330653]
[1641182149407,0.175,46841.0,46840.0,0.330653]
[1641182149807,0.175,46841.0,46840.0,0.331653]
[1641182150508,1.45124255,46846.0,46840.0,0.331653]
[1641182150708,1.45124255,46846.0,46840.0,0.330653]
[1641182151008,1.63824255,46846.0,46840.0,0.330653]
[1641182152013,0.187,46846.0,46840.0,0.330653]
[1641182152413,1.45124255,46847.0,46840.0,0.330653]
[1641182153023,1.45124255,46846.0,46840.0,0.330653]
[1641182154325,0.188,46847.0,46843.0,0.09000814]
[1641182154326,1.63924255,46847.0,46843.0,0.09000814]
[1641182154524,1.45124255,46847.0,46843.0,0.09000814]
[1641182154926,1.45124255,46846.0,46843.0,0.09000814]
[1641182157130,1.63924255,46846.0,46843.0,0.09000814]
[1641182157334,1.63924255,46846.0,46844.0,0.321238]